fUST/lending_fUST_20250716
["ID","MTS","AMOUNT","RATE_DAILY","PERIOD"]
[372429367,1752641443373,-461.0,0.00019452,2]
[372429368,1752641443382,-150.50456212,0.00019452,2]
[372429369,1752641443392,-460.0,0.00019452,2]
[372429370,1752641443401,-551.26785098,0.00019452,2]
[372429371,1752641443411,-328.71914039,0.00019452,2]
[372429372,1752641443420,-460.0,0.00019452,2]
[372429373,1752641443430,-549.49533021,0.00019452,2]
[372429374,1752641443440,-465.09735393,0.00019452,2]
[372429375,1752641443450,-460.0,0.00019452,2]
[372429376,1752641443460,-460.0,0.00019452,2]
[372429377,1752641443469,-277.67,0.00019452,2]
[372429378,1752641443480,-460.0,0.00019452,2]
[372429379,1752641443496,-460.0,0.00019452,2]
[372429380,1752641443506,-460.0,0.00019452,2]
[372429381,1752641443515,-462.20652156,0.00019452,2]
[372429382,1752641443525,-460.0,0.00019452,2]
[372429383,1752641443535,-521.94,0.00019452,2]
[372429384,1752641443544,-464.45537406,0.00019452,2]
[372429385,1752641443553,-3083.07,0.00019452,2]
[372429386,1752641443563,-460.0,0.00019452,2]
[372429387,1752641443572,-460.0,0.00019452,2]
[372429388,1752641443582,-460.0,0.00019452,2]
[372429389,1752641443591,-460.0,0.00019452,2]
[372429390,1752641443601,-460.0,0.00019452,2]
[372429391,1752641443610,-460.0,0.00019452,2]
[372429392,1752641443620,-775.21,0.00019452,2]
[372429393,1752641443629,-571.06,0.00019452,2]
[372429394,1752641443639,-460.0,0.00019452,2]
[372429395,1752641443648,-460.0,0.00019452,2]
[372429396,1752641443657,-460.0,0.00019452,2]
[372429397,1752641443666,-460.0,0.00019452,2]
[372429398,1752641443676,-460.0,0.00019452,2]
[372429399,1752641443685,-465.72307265,0.00019452,2]
[372429400,1752641443694,-460.0,0.00019452,2]
[372429401,1752641443704,-460.0,0.00019452,2]
[372429402,1752641443713,-460.0,0.00019452,2]
[372429403,1752641443723,-460.0,0.00019452,2]
[372429404,1752641443733,-460.0,0.00019452,2]
[372429405,1752641443744,-460.0,0.00019452,2]
[372429406,1752641443753,-460.0,0.00019452,2]
[372429407,1752641443764,-3136.04,0.00019452,2]
[372429408,1752641443774,-460.0,0.00019452,2]
[372429409,1752641443785,-330.21,0.00019452,2]
[372429410,1752641443795,-460.0,0.00019452,2]
[372429411,1752641443806,-744.13,0.00019452,2]
[372429412,1752641443816,-460.0,0.00019452,2]
[372429413,1752641443826,-460.0,0.00019452,2]
[372429414,1752641443836,-460.0,0.00019452,2]
[372429415,1752641443846,-460.0,0.00019452,2]
[372429416,1752641443855,-460.0,0.00019452,2]
[372429417,1752641443865,-460.0,0.00019452,2]
[372429418,1752641443875,-460.0,0.00019452,2]
[372429419,1752641443884,-460.0,0.00019452,2]
[372429421,1752641443894,-1599.16,0.00019452,2]
[372429422,1752641443904,-460.0,0.00019452,2]
[372429423,1752641443913,-460.0,0.00019452,2]
[372429424,1752641443925,-460.0,0.00019452,2]
[372429425,1752641443934,-460.0,0.00019452,2]
[372429426,1752641443944,-461.72932056,0.00019452,2]
[372429427,1752641443954,-460.0,0.00019452,2]
[372429428,1752641443964,-460.0,0.00019452,2]
[372429429,1752641443973,-460.0,0.00019452,2]
[372429430,1752641443982,-460.0,0.00019452,2]
[372429431,1752641443991,-460.0,0.00019452,2]
[372429432,1752641444001,-460.0,0.00019452,2]
[372429433,1752641444011,-462.4,0.00019452,2]
[372429434,1752641444021,-460.0,0.00019452,2]
[372429435,1752641444031,-478.59,0.00019452,2]
[372429436,1752641444040,-460.0,0.00019452,2]
[372429437,1752641444050,-170.8887007,0.00019452,2]
[372429438,1752641444058,-460.0,0.00019452,2]
[372429439,1752641444069,-460.0,0.00019452,2]
[372429440,1752641444079,-460.0,0.00019452,2]
[372429441,1752641444088,-460.0,0.00019452,2]
[372429442,1752641444099,-460.0,0.00019452,2]
[372429443,1752641444109,-460.0,0.00019452,2]
[372429444,1752641444119,-460.0,0.00019452,2]
[372429445,1752641444129,-460.0,0.00019452,2]
[372429446,1752641444139,-1140.79,0.00019452,2]
[372429447,1752641444149,-460.0,0.00019452,2]
[372429448,1752641444160,-460.0,0.00019452,2]
[372429449,1752641444170,-821.83,0.00019452,2]
[372429450,1752641444180,-525.51278032,0.00019452,2]
[372429451,1752641444190,-460.0,0.00019452,2]
[372429452,1752641444199,-1334.44,0.00019452,2]
[372429453,1752641444209,-460.0,0.00019452,2]
[372429454,1752641444219,-460.0,0.00019452,2]
[372429455,1752641444229,-205.39591022,0.00019452,2]
[372429456,1752641444239,-466.72677547,0.00019452,2]
[372429457,1752641444250,-478.06820138,0.00019452,2]
[372429458,1752641444260,-460.0,0.00019452,2]
[372429459,1752641444269,-460.0,0.00019452,2]
[372429460,1752641444279,-394.4854929,0.00019452,2]
[372429461,1752641444288,-460.0,0.00019452,2]
[372429462,1752641444298,-460.0,0.00019452,2]
[372429463,1752641444308,-460.0,0.00019452,2]
[372429464,1752641444318,-460.0,0.00019452,2]
[372429465,1752641444329,-717.73,0.00019452,2]
[372429466,1752641444345,-460.0,0.00019452,2]
[372429467,1752641444366,-460.0,0.00019452,2]
[372429468,1752641444377,-460.0,0.00019452,2]
[372429469,1752641444387,-460.0,0.00019452,2]
[372429470,1752641444397,-460.0,0.00019452,2]
[372429471,1752641444407,-1447.74,0.00019452,2]
[372429472,1752641444416,-460.0,0.00019452,2]
[372429473,1752641444426,-460.0,0.00019452,2]
[372429474,1752641444436,-460.0,0.00019452,2]
[372429475,1752641444445,-1945.12,0.00019452,2]
[372429476,1752641444455,-1188.22,0.00019452,2]
[372429477,1752641444466,-468.26642991,0.00019452,2]
[372429478,1752641444476,-857.59,0.00019452,2]
[372429479,1752641444488,-460.0,0.00019452,2]
[372429480,1752641444498,-460.0,0.00019452,2]
[372429481,1752641444508,-458.26675044,0.00019452,2]
[372429482,1752641444518,-460.0,0.00019452,2]
[372429483,1752641444529,-460.0,0.00019452,2]
[372429484,1752641444538,-460.0,0.00019452,2]
[372429485,1752641444547,-460.0,0.00019452,2]
[372429486,1752641444558,-460.0,0.00019452,2]
[372429487,1752641444570,-205.08,0.00019452,2]
[372429488,1752641444581,-460.0,0.00019452,2]
[372429489,1752641444590,-460.0,0.00019452,2]
[372429490,1752641444600,-460.0,0.00019452,2]
[372429491,1752641444610,-460.0,0.00019452,2]
[372429492,1752641444619,-697.11,0.00019452,2]
[372429493,1752641444630,-460.0,0.00019452,2]
[372429494,1752641444639,-460.0,0.00019452,2]
[372429495,1752641444648,-460.0,0.00019452,2]
[372429496,1752641444658,-460.0,0.00019452,2]
[372429497,1752641444667,-460.0,0.00019452,2]
[372429498,1752641444677,-460.0,0.00019452,2]
[372429499,1752641444687,-460.0,0.00019452,2]
[372429500,1752641444696,-498.84519211,0.00019452,2]
[372429501,1752641444706,-462.66464606,0.00019452,2]
[372429502,1752641444715,-460.0,0.00019452,2]
[372429503,1752641444725,-460.0,0.00019452,2]
[372429504,1752641444734,-460.0,0.00019452,2]
[372429505,1752641444744,-840.78,0.00019452,2]
[372429506,1752641444753,-460.0,0.00019452,2]
[372429507,1752641444763,-460.0,0.00019452,2]
[372429508,1752641444772,-460.0,0.00019452,2]
[372429509,1752641444782,-460.0,0.00019452,2]
[372429510,1752641444791,-454.83798052,0.00019452,2]
[372429511,1752641444801,-460.0,0.00019452,2]
[372429512,1752641444811,-460.0,0.00019452,2]
[372429513,1752641444820,-460.0,0.00019452,2]
[372429514,1752641444830,-460.0,0.00019452,2]
[372429515,1752641444840,-563.77104579,0.00019458,2]
[372429516,1752641444849,-501.56354892,0.00019473,2]
[372429517,1752641444859,-500.0,0.00019473,2]
[372429518,1752641444868,-504.38663439,0.00019473,2]
[372429519,1752641444877,-165.01773793,0.00019473,2]
[372429520,1752641444888,-151.0,0.000195,2]
[372429521,1752641444897,-461.48094352,0.00019505,2]
[372429522,1752641444907,-464.6380152,0.00019505,2]
[372429523,1752641444917,-460.0,0.00019505,2]
[372429524,1752641444927,-646.28926625,0.00019685,2]
[372429525,1752641444937,-460.0,0.00019725,2]
[372429526,1752641444947,-460.0,0.00019725,2]
[372429527,1752641445056,-460.0,0.00019725,2]
[372429528,1752641445066,-460.0,0.00019725,2]
[372429529,1752641445075,-460.0,0.00019725,2]
[372429530,1752641445085,-460.0,0.00019725,2]
[372429531,1752641445094,-460.0,0.00019725,2]
[372429532,1752641445103,-460.0,0.00019725,2]
[372429533,1752641445111,-460.0,0.00019725,2]
[372429534,1752641445120,-460.0,0.00019725,2]
[372429535,1752641445129,-462.8780156,0.00019725,2]
[372429536,1752641445137,-462.39463851,0.00019726,2]
[372429537,1752641445146,-460.0,0.00019726,2]
[372429538,1752641445155,-460.0,0.00019726,2]
[372429539,1752641445163,-460.0,0.00019726,2]
[372429540,1752641445170,-466.51028585,0.00019726,2]
[372429541,1752641445177,-566.93,0.00019726,2]
[372429542,1752641445184,-460.0,0.00019726,2]
[372429543,1752641445192,-466.02141717,0.00019726,2]
[372429544,1752641445200,-462.5974337,0.00019726,2]
[372429545,1752641445207,-460.0,0.00019726,2]
[372429546,1752641445215,-460.0,0.00019726,2]
[372429547,1752641445222,-460.0,0.00019726,2]
[372429548,1752641445229,-557.80899323,0.00019726,2]
[372429549,1752641445236,-460.0,0.00019726,2]
[372429550,1752641445243,-460.0,0.00019726,2]
[372429551,1752641445251,-3083.07,0.00019726,2]
[372429552,1752641445258,-460.0,0.00019726,2]
[372429553,1752641445265,-463.08397474,0.00019726,2]
[372429554,1752641445272,-775.21,0.00019726,2]
[372429555,1752641445279,-460.0,0.00019726,2]
[372429556,1752641445287,-469.14789755,0.00019726,2]
[372429557,1752641445296,-460.0,0.00019726,2]
[372429558,1752641445303,-393.32905259,0.00019726,2]
[372429559,1752641445310,-183.40695992,0.00019726,2]
[372429560,1752641445317,-267.12146662,0.00019726,2]
[372429561,1752641445324,-460.0,0.00019726,2]
[372429562,1752641445331,-460.0,0.00019726,2]
[372429563,1752641445337,-460.0,0.00019726,2]
[372429564,1752641445344,-3136.04,0.00019726,2]
[372429565,1752641445351,-744.13,0.00019726,2]
[372429566,1752641445357,-460.0,0.00019726,2]
[372429567,1752641445364,-460.0,0.00019726,2]
[372429568,1752641445370,-1599.16,0.00019726,2]
[372429569,1752641445377,-460.0,0.00019726,2]
[372429570,1752641445384,-460.0,0.00019726,2]
[372429571,1752641445391,-460.0,0.00019726,2]
[372429572,1752641445400,-460.0,0.00019726,2]
[372429573,1752641445410,-507.79,0.00019726,2]
[372429574,1752641445419,-460.0,0.00019726,2]
[372429575,1752641445429,-466.6653743,0.00019726,2]
[372429576,1752641445438,-462.4,0.00019726,2]
[372429577,1752641445448,-321.21435485,0.00019726,2]
[372429578,1752641445458,-460.0,0.00019726,2]
[372429579,1752641445467,-460.0,0.00019726,2]
[372429580,1752641445477,-460.0,0.00019726,2]
[372429581,1752641445490,-460.0,0.00019726,2]
[372429582,1752641445500,-460.0,0.00019726,2]
[372429583,1752641445509,-460.0,0.00019726,2]
[372429584,1752641445519,-460.0,0.00019726,2]
[372429585,1752641445528,-1140.79,0.00019726,2]
[372429586,1752641445537,-460.0,0.00019726,2]
[372429587,1752641445547,-821.83,0.00019726,2]
[372429588,1752641445556,-1334.44,0.00019726,2]
[372429589,1752641445565,-460.0,0.00019726,2]
[372429590,1752641445575,-460.0,0.00019726,2]
[372429591,1752641445584,-460.0,0.00019726,2]
[372429592,1752641445593,-344.9961898,0.00019726,2]
[372429593,1752641445603,-451.7051017,0.00019726,2]
[372429594,1752641445612,-717.73,0.00019726,2]
[372429595,1752641445621,-460.0,0.00019726,2]
[372429596,1752641445631,-460.0,0.00019726,2]
[372429597,1752641445640,-460.0,0.00019726,2]
[372429598,1752641445649,-1447.74,0.00019726,2]
[372429599,1752641445659,-460.0,0.00019726,2]
[372429600,1752641445669,-441.10636322,0.00019726,2]
[372429601,1752641445678,-460.0,0.00019726,2]
[372429602,1752641445687,-1945.12,0.00019726,2]
[372429603,1752641445697,-1188.22,0.00019726,2]
[372429604,1752641445707,-857.59,0.00019726,2]
[372429605,1752641445716,-460.0,0.00019726,2]
[372429606,1752641445726,-400.54044011,0.00019726,2]
[372429607,1752641445736,-460.0,0.00019726,2]
[372429608,1752641445745,-460.0,0.00019726,2]
[372429609,1752641445755,-460.0,0.00019726,2]
[372429610,1752641445765,-460.0,0.00019726,2]
[372429611,1752641445774,-460.0,0.00019726,2]
[372429612,1752641445784,-460.0,0.00019726,2]
[372429613,1752641445794,-460.0,0.00019726,2]
[372429614,1752641445803,-697.11,0.00019726,2]
[372429615,1752641445812,-460.0,0.00019726,2]
[372429616,1752641445822,-460.0,0.00019726,2]
[372429617,1752641445831,-460.0,0.00019726,2]
[372429618,1752641445841,-460.0,0.00019726,2]
[372429619,1752641445851,-460.0,0.00019726,2]
[372429620,1752641445860,-474.27710762,0.00019726,2]
[372429621,1752641445869,-460.0,0.00019726,2]
[372429622,1752641445879,-840.78,0.00019726,2]
[372429623,1752641445889,-460.0,0.00019726,2]
[372429624,1752641445899,-460.0,0.00019726,2]
[372429625,1752641445908,-460.0,0.00019726,2]
[372429626,1752641445919,-465.87650376,0.00019726,2]
[372429627,1752641445928,-460.0,0.00019726,2]
[372429628,1752641445938,-460.0,0.00019726,2]
[372429629,1752641445947,-460.0,0.00019779,2]
[372429630,1752641445957,-2203.11,0.000198,2]
[372429631,1752641445967,-460.0,0.00019999,2]
[372429632,1752641445977,-460.0,0.00019999,2]
[372429633,1752641445987,-460.0,0.00019999,2]
[372429634,1752641445997,-460.0,0.00019999,2]
[372429635,1752641446007,-460.0,0.00019999,2]
[372429637,1752641446016,-460.0,0.00019999,2]
[372429638,1752641446027,-460.0,0.00019999,2]
[372429639,1752641446036,-460.0,0.00019999,2]
[372429640,1752641446046,-460.0,0.0002,2]
[372429641,1752641446055,-151.0,0.0002,4]
[372429642,1752641446065,-453.52,0.0002,4]
[372429643,1752641446075,-460.0,0.0002,2]
[372429644,1752641446084,-560.58,0.0002,2]
[372429645,1752641446094,-281.6,0.0002,2]
[372429646,1752641446103,-3083.07,0.0002,2]
[372429647,1752641446113,-775.21,0.0002,2]
[372429648,1752641446122,-460.0,0.0002,2]
[372429649,1752641446132,-460.0,0.0002,2]
[372429650,1752641446142,-460.0,0.0002,2]
[372429651,1752641446152,-460.0,0.0002,2]
[372429652,1752641446162,-3136.04,0.0002,2]
[372429653,1752641446172,-744.13,0.0002,2]
[372429654,1752641446182,-460.0,0.0002,2]
[372429655,1752641446191,-1599.16,0.0002,2]
[372429656,1752641446200,-460.0,0.0002,2]
[372429658,1752641446210,-462.4,0.0002,2]
[372429661,1752641446219,-460.0,0.0002,2]
[372429662,1752641446228,-460.0,0.0002,2]
[372429664,1752641446238,-587.91647888,0.0002,2]
[372429666,1752641446247,-460.0,0.0002,2]
[372429668,1752641446256,-1140.79,0.0002,2]
[372429671,1752641446265,-158.40065603,0.0002,2]
[372429673,1752641446275,-821.83,0.0002,2]
[372429674,1752641446284,-1334.44,0.0002,2]
[372429677,1752641446293,-460.0,0.0002,2]
[372429679,1752641446302,-471.21488851,0.0002,2]
[372429680,1752641446311,-717.73,0.0002,2]
[372429682,1752641446321,-314.2268854,0.0002,2]
[372429685,1752641446332,-460.0,0.0002,2]
[372429687,1752641446341,-460.0,0.0002,2]
[372429688,1752641446350,-460.0,0.0002,2]
[372429689,1752641446359,-1447.74,0.0002,2]
[372429690,1752641446369,-1945.12,0.0002,2]
[372429691,1752641446378,-1188.22,0.0002,2]
[372429692,1752641446387,-857.59,0.0002,2]
[372429693,1752641446397,-460.0,0.0002,2]
[372429694,1752641446406,-460.0,0.0002,2]
[372429695,1752641446416,-460.0,0.0002,2]
[372429696,1752641446425,-460.0,0.0002,2]
[372429697,1752641446435,-460.0,0.0002,2]
[372429698,1752641446444,-697.11,0.0002,2]
[372429699,1752641446454,-460.0,0.0002,2]
[372429700,1752641446463,-460.0,0.0002,2]
[372429701,1752641446472,-463.65288381,0.0002,2]
[372429702,1752641446482,-460.0,0.0002,2]
[372429703,1752641446495,-460.0,0.0002,2]
[372429704,1752641446505,-840.78,0.0002,2]
[372429705,1752641446514,-460.0,0.0002,2]
[372429706,1752641446523,-460.0,0.0002,2]
[372429707,1752641446534,-460.0,0.0002,2]
[372429708,1752641446543,-250.51,0.0002,2]
[372429710,1752641446552,-508.41953509,0.00020021,2]
[372429711,1752641446563,-155.69,0.00020047,2]
[372429712,1752641446573,-247.70740979,0.00020053,2]
[372429713,1752641446583,-1200.0,0.00020077,2]
[372429714,1752641446592,-420.0,0.00020078,2]
[372429715,1752641446602,-1377.0,0.00020176,2]
[372429716,1752641446611,-310.686865,0.00020187,2]
[372429717,1752641446620,-463.08257825,0.00020273,2]
[372429718,1752641446629,-471.80948179,0.00020273,2]
[372429719,1752641446639,-465.37457773,0.00020273,2]
[372429720,1752641446647,-466.15637135,0.00020273,2]
[372429721,1752641446657,-460.0,0.00020273,2]
[372429722,1752641446666,-464.31808404,0.00020273,2]
[372429723,1752641446676,-3083.07,0.00020273,2]
[372429724,1752641446685,-775.21,0.00020273,2]
[372429725,1752641446694,-460.0,0.00020273,2]
[372429726,1752641446703,-460.0,0.00020273,2]
[372429727,1752641446713,-460.0,0.00020273,2]
[372429728,1752641446722,-463.38609221,0.00020273,2]
[372429729,1752641446731,-3136.04,0.00020273,2]
[372429730,1752641446740,-744.13,0.00020273,2]
[372429731,1752641446750,-460.0,0.00020273,2]
[372429732,1752641446759,-1599.16,0.00020273,2]
[372429733,1752641446769,-291.95,0.00020273,2]
[372429734,1752641446778,-462.4,0.00020273,2]
[372429735,1752641446788,-460.0,0.00020273,2]
[372429736,1752641446874,-194.40467385,0.00020273,2]
[372429737,1752641446885,-1140.79,0.00020273,2]
[372429738,1752641446894,-821.83,0.00020273,2]
[372429739,1752641446904,-1334.44,0.00020273,2]
[372429740,1752641446913,-460.0,0.00020273,2]
[372429741,1752641446924,-717.73,0.00020273,2]
[372429742,1752641446933,-365.2,0.00020273,2]
[372429743,1752641446943,-467.41780732,0.00020273,2]
[372429744,1752641446952,-1447.74,0.00020273,2]
[372429745,1752641446962,-1945.12,0.00020273,2]
[372429746,1752641446971,-1188.22,0.00020273,2]
[372429747,1752641446981,-857.59,0.00020273,2]
[372429748,1752641446991,-460.0,0.00020273,2]
[372429749,1752641447001,-460.0,0.00020273,2]
[372429750,1752641447010,-460.0,0.00020273,2]
[372429751,1752641447020,-460.0,0.00020273,2]
[372429752,1752641447029,-697.11,0.00020273,2]
[372429753,1752641447039,-460.0,0.00020273,2]
[372429754,1752641447049,-460.0,0.00020273,2]
[372429755,1752641447059,-460.0,0.00020273,2]
[372429756,1752641447068,-840.78,0.00020273,2]
[372429757,1752641447078,-460.0,0.00020273,2]
[372429758,1752641447087,-500.82141224,0.0002031,2]
[372429759,1752641447096,-500.0,0.00020342,2]
[372429760,1752641447106,-1291.93384875,0.00020401,2]
[372429761,1752641447115,-1359.04,0.00020438,3]
[372429762,1752641447125,-679.52,0.00020438,3]
[372429763,1752641447134,-339.76,0.00020438,3]
[372429764,1752641447144,-214.40824756,0.00020499,2]
[372429765,1752641447153,-12605.49131908,0.00020499,2]
[372429766,1752641447162,-468.75,0.00020499,2]
[372429767,1752641447172,-520.85416667,0.00020521,2]
[372429768,1752641447183,-838.99048831,0.00020522,2]
[372429769,1752641447192,-160.0,0.00020522,2]
[372429770,1752641447202,-215.5496034,0.00020522,2]
[372429771,1752641447211,-160.0,0.00020522,2]
[372429772,1752641447221,-160.0,0.00020522,2]
[372429773,1752641447230,-160.0,0.00020522,2]
[372429774,1752641447240,-160.0,0.00020522,2]
[372429775,1752641447250,-160.0,0.00020522,2]
[372429776,1752641447261,-230.8109288,0.00020522,2]
[372429777,1752641447272,-160.0,0.00020522,2]
[372429778,1752641447283,-3083.07,0.00020547,2]
[372429779,1752641447292,-775.21,0.00020547,2]
[372429780,1752641447302,-460.0,0.00020547,2]
[372429781,1752641447312,-460.0,0.00020547,2]
[372429782,1752641447324,-231.6146827,0.00020547,2]
[372429783,1752641447335,-3136.04,0.00020547,2]
[372429784,1752641447344,-744.13,0.00020547,2]
[372429785,1752641447355,-575.6139442,0.00020547,2]
[372429786,1752641447366,-1599.16,0.00020547,2]
[372429787,1752641447377,-462.4,0.00020547,2]
[372429788,1752641447388,-460.0,0.00020547,2]
[372429789,1752641447397,-1140.79,0.00020547,2]
[372429790,1752641447407,-821.83,0.00020547,2]
[372429791,1752641447417,-1334.44,0.00020547,2]
[372429792,1752641447427,-717.73,0.00020547,2]
[372429793,1752641447436,-1447.74,0.00020547,2]
[372429794,1752641447447,-1945.12,0.00020547,2]
[372429795,1752641447458,-1188.22,0.00020547,2]
[372429796,1752641447467,-857.59,0.00020547,2]
[372429797,1752641447476,-460.0,0.00020547,2]
[372429798,1752641447488,-461.73,0.00020547,2]
[372429799,1752641447497,-460.0,0.00020547,2]
[372429800,1752641447508,-460.0,0.00020547,2]
[372429801,1752641447518,-697.11,0.00020547,2]
[372429802,1752641447527,-460.0,0.00020547,2]
[372429803,1752641447537,-460.0,0.00020547,2]
[372429804,1752641447547,-460.0,0.00020547,2]
[372429805,1752641447557,-840.78,0.00020547,2]
[372429806,1752641447567,-460.0,0.00020547,2]
[372429807,1752641447577,-151.0,0.000206,4]
[372429808,1752641447587,-500.0,0.00020721,2]
[372429809,1752641447597,-160.0,0.00020725,2]
[372429810,1752641447607,-618.35197715,0.00020784,2]
[372429811,1752641447616,-1274.28,0.000208,2]
[372429812,1752641447626,-26793.24,0.000208,2]
[372429813,1752641447636,-5078.47563163,0.00020821,2]
[372429814,1752641447644,-3083.07,0.00020821,2]
[372429815,1752641447654,-775.21,0.00020821,2]
[372429816,1752641447663,-474.04839332,0.00020821,2]
[372429817,1752641447672,-460.0,0.00020821,2]
[372429818,1752641447682,-3136.04,0.00020821,2]
[372429819,1752641447691,-744.13,0.00020821,2]
[372429820,1752641447702,-1599.16,0.00020821,2]
[372429821,1752641447711,-462.4,0.00020821,2]
[372429822,1752641447721,-460.0,0.00020821,2]
[372429823,1752641447731,-1140.79,0.00020821,2]
[372429824,1752641447740,-821.83,0.00020821,2]
[372429825,1752641447750,-1334.44,0.00020821,2]
[372429826,1752641447759,-717.73,0.00020821,2]
[372429827,1752641447769,-1447.74,0.00020821,2]
[372429828,1752641447778,-1945.12,0.00020821,2]
[372429829,1752641447787,-1188.22,0.00020821,2]
[372429830,1752641447796,-857.59,0.00020821,2]
[372429831,1752641447806,-460.0,0.00020821,2]
[372429832,1752641447816,-460.0,0.00020821,2]
[372429833,1752641447826,-460.0,0.00020821,2]
[372429834,1752641447835,-697.11,0.00020821,2]
[372429835,1752641447844,-460.0,0.00020821,2]
[372429836,1752641447853,-574.76,0.00020821,2]
[372429837,1752641447863,-460.0,0.00020821,2]
[372429838,1752641447872,-840.78,0.00020821,2]
[372429839,1752641447882,-460.0,0.00020821,2]
[372429840,1752641447891,-151.0,0.00020822,2]
[372429841,1752641447901,-782.0,0.00020822,2]
[372429842,1752641447910,-500.0,0.00020822,2]
[372429843,1752641447919,-1000.0,0.0002089,2]
[372429844,1752641447929,-151.0,0.00021,4]
[372429845,1752641447939,-167.322,0.00021004,2]
[372429846,1752641447948,-3083.07,0.00021095,2]
[372429847,1752641447958,-775.21,0.00021095,2]
[372429848,1752641447967,-460.0,0.00021095,2]
[372429849,1752641447977,-3136.04,0.00021095,2]
[372429850,1752641447987,-744.13,0.00021095,2]
[372429851,1752641447996,-1599.16,0.00021095,2]
[372429852,1752641448006,-462.4,0.00021095,2]
[372429853,1752641448016,-460.0,0.00021095,2]
[372429854,1752641448025,-1140.79,0.00021095,2]
[372429855,1752641448034,-821.83,0.00021095,2]
[372429856,1752641448044,-1334.44,0.00021095,2]
[372429857,1752641448054,-717.73,0.00021095,2]
[372429858,1752641448063,-1447.74,0.00021095,2]
[372429859,1752641448073,-1945.12,0.00021095,2]
[372429860,1752641448082,-1188.22,0.00021095,2]
[372429861,1752641448092,-857.59,0.00021095,2]
[372429862,1752641448101,-460.0,0.00021095,2]
[372429863,1752641448111,-460.0,0.00021095,2]
[372429864,1752641448120,-460.0,0.00021095,2]
[372429865,1752641448129,-697.11,0.00021095,2]
[372429866,1752641448138,-460.0,0.00021095,2]
[372429867,1752641448154,-451.31,0.00021095,2]
[372429868,1752641448163,-840.78,0.00021095,2]
[372429869,1752641448173,-460.0,0.00021095,2]
[372429870,1752641448182,-151.0,0.00021096,2]
[372429871,1752641448192,-782.0,0.00021096,2]
[372429872,1752641448201,-500.0,0.00021096,2]
[372429873,1752641448211,-151.0,0.000211,4]
[372429874,1752641448220,-508.27684544,0.00021146,2]
[372429875,1752641448230,-500.86413658,0.00021146,2]
[372429876,1752641448240,-501.32843351,0.00021146,2]
[372429877,1752641448250,-500.0,0.00021146,2]
[372429878,1752641448260,-501.02878966,0.00021156,2]
[372429879,1752641448273,-500.75307769,0.00021156,2]
[372429880,1752641448283,-500.0,0.00021156,2]
[372429881,1752641448292,-260.0,0.00021273,2]
[372429882,1752641448302,-151.0,0.000213,3]
[372429883,1752641448311,-151.0,0.000213,4]
[372429884,1752641448321,-3083.07,0.00021369,2]
[372429885,1752641448331,-775.21,0.00021369,2]